bitfinex-derivatives/quotes_BTCF0:USTF0_20250327
["timestamp","ask_amount","ask_price","bid_price","bid_amount"]
[1743088468017,0.20275146,87398.0,87397.0,0.1144409]
[1743088468212,0.20343146,87398.0,87397.0,0.4759209]
[1743088468408,0.20335146,87398.0,87397.0,0.4759209]
[1743088468622,0.31779106,87398.0,87397.0,0.6997209]
[1743088468820,0.20335146,87398.0,87397.0,0.6997209]
[1743088469021,0.31779106,87398.0,87397.0,0.70985203]
[1743088469615,0.20335146,87398.0,87397.0,0.70985203]
[1743088469814,0.32279106,87398.0,87397.0,0.70985203]
[1743088470419,0.32779106,87398.0,87397.0,0.70985203]
[1743088470610,0.32579106,87398.0,87397.0,0.70985203]
[1743088470812,0.54519106,87398.0,87397.0,0.70985203]
[1743088471225,0.54319106,87398.0,87397.0,0.70985203]
[1743088471616,0.3405196,87398.0,87397.0,0.70985203]
[1743088472717,0.3405196,87398.0,87397.0,0.71843164]
[1743088473123,0.22608,87398.0,87397.0,0.71843164]
[1743088473423,0.00668,87398.0,87397.0,0.71843164]
[1743088473619,0.1204396,87398.0,87397.0,0.71843164]
[1743088473820,0.006,87398.0,87397.0,0.71843164]
[1743088474217,0.006,87398.0,87397.0,0.84043164]
[1743088475322,0.00057172,87406.0,87405.0,0.1144305]
[1743088475625,0.00057172,87406.0,87405.0,0.6899105]
[1743088475626,0.11576092,87406.0,87405.0,0.6899105]
[1743088475812,0.11580092,87406.0,87405.0,0.6899105]
[1743088476318,0.11572092,87406.0,87405.0,0.6899105]
[1743088476822,0.12072092,87406.0,87405.0,0.6899105]
[1743088477728,0.12272092,87406.0,87405.0,0.6899105]
[1743088478216,0.00829172,87406.0,87405.0,0.6899105]
[1743088478532,0.00757172,87406.0,87405.0,0.8000105]
[1743088479027,0.12200092,87406.0,87405.0,0.8000105]
[1743088479425,0.00757172,87406.0,87405.0,0.8000105]
[1743088480223,0.12200092,87406.0,87405.0,0.8000105]
[1743088480714,0.00757172,87406.0,87405.0,0.6899105]
[1743088480919,0.00829172,87406.0,87405.0,0.6899105]
[1743088481228,0.00829172,87406.0,87405.0,0.8118305]
[1743088481621,0.12272092,87406.0,87405.0,0.8118305]
[1743088482118,0.00829172,87406.0,87405.0,0.8118305]
[1743088482429,0.12272092,87406.0,87405.0,0.8118305]
[1743088482929,0.00829172,87406.0,87405.0,0.8118305]
[1743088483426,0.00757172,87406.0,87405.0,0.8118305]
[1743088486229,0.00757172,87406.0,87405.0,0.8117905]
[1743088487128,0.00825172,87406.0,87405.0,0.8117905]
[1743088488230,0.22635172,87406.0,87405.0,0.8117905]
[1743088488522,0.00825172,87406.0,87405.0,0.8117905]
[1743088488731,0.00757172,87406.0,87405.0,0.8117905]
[1743088488922,0.12268092,87406.0,87405.0,0.8117905]
[1743088489123,0.12268092,87406.0,87405.0,0.36148]
[1743088489526,0.23298092,87406.0,87405.0,0.36148]
[1743088489829,0.33658092,87406.0,87405.0,0.36148]
[1743088490532,0.33658092,87406.0,87405.0,0.4759105]
[1743088491426,0.33658092,87406.0,87405.0,0.36148]
[1743088493233,0.33658092,87406.0,87405.0,0.37160985]
[1743088493733,0.33658092,87406.0,87405.0,0.58650985]
[1743088493934,0.33658092,87406.0,87405.0,0.57638]
[1743088494426,0.33658092,87406.0,87405.0,0.6908105]
[1743088495226,0.33658092,87406.0,87405.0,0.4759105]
[1743088495422,0.45842092,87406.0,87405.0,0.4759105]
[1743088496626,0.33658092,87406.0,87405.0,0.4759105]
[1743088496827,0.12268092,87406.0,87405.0,0.6889105]
[1743088499826,0.00825172,87406.0,87405.0,0.6889105]
[1743088500027,0.12268092,87406.0,87405.0,0.6889105]
[1743088500227,0.00757172,87406.0,87405.0,0.6889105]
[1743088501028,0.00829172,87406.0,87405.0,0.6889105]
[1743088501528,0.00757172,87406.0,87405.0,0.6889105]
[1743088502228,0.00829172,87406.0,87405.0,0.6889105]
[1743088502430,0.00757172,87406.0,87405.0,0.6889105]
[1743088502630,0.00825172,87406.0,87405.0,0.6889105]
[1743088504625,8e-05,87408.0,87407.0,0.1144279]
[1743088504829,0.2288488,87414.0,87413.0,0.1144174]
[1743088505026,0.2295288,87414.0,87413.0,0.3201774]
[1743088505241,0.2295288,87414.0,87413.0,0.20576]
[1743088505440,0.4447288,87414.0,87413.0,0.20576]
[1743088505637,0.4447288,87414.0,87413.0,0.3206376]
[1743088506738,0.3303023,87414.0,87413.0,0.3206376]
[1743088506938,0.2730897,87414.0,87413.0,0.3206376]
[1743088507135,0.21588,87414.0,87413.0,0.3206376]
[1743088507338,0.10778,87414.0,87413.0,0.3206376]
[1743088508042,0.11278,87414.0,87413.0,0.3216376]
[1743088508229,0.2271987,87414.0,87413.0,0.3216376]
[1743088508629,0.11278,87414.0,87413.0,0.3216376]
[1743088508927,0.00568,87414.0,87413.0,0.3216376]
[1743088509132,0.1200987,87414.0,87413.0,0.3216376]
[1743088509628,0.3392987,87414.0,87413.0,0.3216376]
[1743088509842,0.22488,87414.0,87413.0,0.3216376]
[1743088510038,0.3392987,87414.0,87413.0,0.3216376]
[1743088511533,0.22488,87414.0,87413.0,0.3216376]
[1743088511742,0.00568,87414.0,87413.0,0.3216376]
[1743088512634,8e-05,87427.0,87426.0,0.114403]
[1743088512840,0.0004,87438.0,87433.0,0.1143938]
[1743088513029,0.0004,87438.0,87433.0,0.4760738]
[1743088513232,0.1144645,87441.0,87435.0,0.0571949]
[1743088513432,0.1144645,87441.0,87440.0,0.4751847]
[1743088513642,0.33634451,87441.0,87440.0,0.4751847]
[1743088513840,0.10968001,87441.0,87440.0,0.4751847]
[1743088514044,0.11526341,87441.0,87440.0,0.4751847]
[1743088514234,0.11526341,87441.0,87440.0,0.4760647]
[1743088514437,0.11526341,87441.0,87440.0,0.36168]
[1743088514638,0.33626341,87441.0,87440.0,0.00088]
[1743088515146,0.114386,87439.0,87438.0,0.1143869]
[1743088515448,0.115306,87439.0,87438.0,0.3272069]
[1743088516341,0.115306,87439.0,87438.0,0.3272073]
[1743088518051,0.117306,87439.0,87438.0,0.3272073]
[1743088520348,0.117306,87439.0,87438.0,0.6880073]
[1743088520747,0.335706,87439.0,87438.0,0.6880073]
[1743088521441,0.00292,87439.0,87438.0,0.6880073]
[1743088521652,0.002,87439.0,87438.0,0.6880073]
[1743088521836,0.00288001,87439.0,87438.0,0.6880073]
[1743088522236,0.002,87439.0,87438.0,0.6880073]
[1743088525342,0.116386,87439.0,87438.0,0.6880073]
[1743088525545,0.11726601,87439.0,87438.0,0.6880073]
[1743088526442,0.00288001,87439.0,87438.0,0.6880073]
[1743088526646,0.002,87439.0,87438.0,0.6880073]
[1743088526849,0.116386,87439.0,87438.0,0.6880073]
[1743088527049,0.002,87439.0,87438.0,0.6880073]
[1743088527255,0.00296001,87439.0,87438.0,0.6880073]
[1743088527443,0.00288001,87439.0,87438.0,0.6880073]
[1743088527752,0.11726601,87439.0,87438.0,0.6880073]
[1743088527951,0.12638059,87439.0,87438.0,0.36172]
[1743088528146,0.24074668,87439.0,87438.0,0.36172]
[1743088528347,0.45384668,87439.0,87438.0,0.36172]
[1743088528851,0.33948059,87439.0,87438.0,0.36172]
[1743088529057,0.33948059,87439.0,87438.0,0.4761073]
[1743088529350,0.01199459,87439.0,87438.0,0.6937073]
[1743088529558,0.12550058,87439.0,87438.0,0.6937073]
[1743088529764,0.12638059,87439.0,87438.0,0.6937073]
[1743088530246,0.01199459,87439.0,87438.0,0.6937073]
[1743088530456,0.002,87439.0,87438.0,0.6937073]
[1743088532545,0.00292,87439.0,87438.0,0.6937073]
[1743088532748,0.002,87439.0,87438.0,0.6937073]
[1743088532960,0.00260001,87439.0,87438.0,0.6937073]
[1743088533256,0.002,87439.0,87438.0,0.6937073]
[1743088533454,0.00260001,87439.0,87438.0,0.6937073]
[1743088533659,0.002,87439.0,87438.0,0.6937073]
[1743088534460,0.00268,87439.0,87438.0,0.6937073]
[1743088534953,0.002,87439.0,87438.0,0.6937073]
[1743088535458,0.00292,87439.0,87438.0,0.6937073]
[1743088535854,0.12692051,87439.0,87438.0,0.57932]
[1743088536055,0.35020566,87439.0,87438.0,0.6937073]
[1743088536251,0.45340566,87439.0,87438.0,0.6937073]
[1743088536652,0.45987417,87439.0,87438.0,0.6937073]
[1743088537562,0.43802051,87439.0,87438.0,0.6937073]
[1743088538662,0.45287083,87439.0,87438.0,0.6937073]
[1743088539058,0.45253793,87439.0,87438.0,0.6937073]
[1743088539260,8e-05,87442.0,87441.0,0.1143834]
[1743088539458,0.1144621,87442.0,87441.0,0.3236434]
[1743088539660,0.1155421,87442.0,87441.0,0.3236434]
[1743088540159,0.3227421,87442.0,87441.0,0.3236434]
[1743088540371,0.00116,87442.0,87441.0,0.45354806]
[1743088540560,8e-05,87448.0,87447.0,0.1143755]
[1743088540753,0.13701554,87454.0,87453.0,0.1143677]
[1743088541061,0.25138194,87454.0,87453.0,0.1159277]
[1743088541264,0.25138194,87454.0,87453.0,0.00156]
[1743088541563,0.58700511,87454.0,87453.0,0.00156]
[1743088541867,0.59341429,87454.0,87453.0,0.00156]
[1743088542455,0.57845329,87454.0,87453.0,0.00156]
[1743088543365,0.69993329,87454.0,87453.0,0.00156]
[1743088543865,0.56331775,87454.0,87453.0,0.00156]
[1743088545057,0.1143768,87446.0,87445.0,0.00017161]
[1743088545253,0.1143768,87446.0,87445.0,0.00125161]
[1743088545254,0.11541681,87446.0,87445.0,0.00125161]
[1743088545461,0.44081681,87446.0,87445.0,0.00125161]
[1743088545666,0.44722599,87446.0,87445.0,0.00125161]
[1743088546464,0.4620848,87446.0,87445.0,0.00125161]
[1743088547972,0.4620848,87446.0,87433.0,0.01070188]
[1743088547973,0.1143925,87434.0,87433.0,0.01070188]
[1743088548266,0.0572022,87425.0,87404.0,0.00171604]
[1743088548570,0.1144292,87406.0,87390.0,0.46512664]
[1743088548774,0.1144488,87391.0,87390.0,0.46572664]
[1743088548969,0.1151288,87391.0,87390.0,0.46572664]
[1743088549267,0.00068,87391.0,87390.0,0.58017674]
[1743088549468,0.00640918,87391.0,87390.0,0.90557674]
[1743088549663,0.15099681,87410.0,87390.0,0.90557674]
[1743088549664,0.1144442,87400.0,87399.0,0.1716497]
[1743088549860,0.1716648,87400.0,87399.0,0.6305575]
[1743088550062,0.2735448,87400.0,87399.0,0.6305575]
[1743088550265,0.2735448,87400.0,87399.0,0.57334]
[1743088550961,0.2735448,87400.0,87399.0,0.6877783]
[1743088551362,0.18137833,87400.0,87399.0,0.6877783]
[1743088551562,0.18137833,87400.0,87399.0,0.6887783]
[1743088552275,0.1723448,87400.0,87399.0,0.6887783]
[1743088552475,0.1723448,87400.0,87399.0,0.6897783]
[1743088553072,0.00068,87400.0,87399.0,0.6897783]
[1743088553266,0.1144323,87404.0,87403.0,0.1144318]
[1743088553464,0.1150723,87404.0,87403.0,0.3296718]
[1743088554174,0.00064,87404.0,87403.0,0.3296718]
[1743088554372,0.13678682,87407.0,87406.0,0.1144292]
[1743088554673,0.17127689,87414.0,87406.0,0.1144292]
[1743088554674,0.17127689,87414.0,87413.0,0.11442]
[1743088554877,0.17191689,87414.0,87413.0,0.59726]
[1743088555068,0.17195689,87414.0,87413.0,0.59726]
[1743088555372,0.20267146,87421.0,87420.0,0.1144108]
[1743088555566,0.20343146,87421.0,87420.0,0.4759308]
[1743088555869,0.20343146,87421.0,87420.0,0.5973708]
[1743088556061,8e-05,87429.0,87426.0,0.0572015]
[1743088556267,0.1143991,87431.0,87430.0,0.0571983]
[1743088556570,0.11535911,87431.0,87430.0,0.1620583]
[1743088556774,0.1143991,87431.0,87430.0,0.1620583]
[1743088556982,0.1153991,87431.0,87430.0,0.1620583]
[1743088557470,0.1153991,87431.0,87430.0,0.10486]
[1743088557669,0.1153991,87431.0,87430.0,0.2192578]
[1743088557869,0.1153991,87431.0,87430.0,0.2202578]
[1743088558074,0.22464006,87431.0,87430.0,0.2202578]
[1743088558975,0.12454006,87431.0,87430.0,0.2202578]
[1743088559174,0.1153991,87431.0,87430.0,0.2202578]
[1743088559384,0.12443559,87431.0,87430.0,0.2212578]
[1743088559877,0.001,87431.0,87430.0,0.2212578]
[1743088560074,0.1153964,87431.0,87430.0,0.2222578]
[1743088560278,0.001,87431.0,87430.0,0.2222578]
[1743088560481,0.1143964,87431.0,87430.0,0.2222578]
[1743088560776,0.11535641,87431.0,87430.0,0.2212578]
[1743088560969,0.00096001,87431.0,87430.0,0.2212578]
[1743088561168,8e-05,87436.0,87430.0,0.1640586]
[1743088561373,8e-05,87436.0,87435.0,0.4751912]
[1743088561579,8e-05,87436.0,87435.0,0.4761912]
[1743088561774,0.0004,87438.0,87437.0,0.1143886]
[1743088561974,0.0004,87438.0,87437.0,0.1153486]
[1743088562274,0.00136001,87438.0,87437.0,0.1153486]
[1743088562479,0.1143742,87449.0,87448.0,0.1143729]
[1743088562674,0.18149514,87449.0,87448.0,0.1153329]
[1743088562874,0.17252161,87449.0,87448.0,0.1153329]
[1743088563075,0.22970961,87449.0,87448.0,0.1153329]
[1743088563470,0.22970961,87449.0,87448.0,0.2199329]
[1743088564281,0.00196001,87449.0,87448.0,0.2199329]
[1743088564475,0.001,87449.0,87448.0,0.2199329]
[1743088564677,0.00196001,87449.0,87448.0,0.2199329]
[1743088564881,0.1153729,87449.0,87448.0,0.2199329]
[1743088565086,0.001,87449.0,87448.0,0.2199329]
[1743088565582,0.1153729,87449.0,87448.0,0.2199329]
[1743088566085,0.11633291,87449.0,87448.0,0.22823889]
[1743088567292,0.1143834,87441.0,87440.0,0.00017161]
[1743088567589,0.1239908,87441.0,87440.0,0.00085161]
[1743088567780,0.4847908,87441.0,87440.0,0.00081161]
[1743088568084,0.1144069,87423.0,87422.0,1.4384509]
[1743088568285,0.1144069,87423.0,87422.0,0.4186035]
[1743088568586,0.1151269,87423.0,87422.0,0.4186035]
[1743088569081,0.22951392,87423.0,87422.0,0.0006]
[1743088569279,0.1144161,87416.0,87414.0,0.00017161]
[1743088569478,0.1144161,87416.0,87415.0,0.20190221]
[1743088569479,0.47609611,87416.0,87415.0,0.20190221]
[1743088569985,0.59049229,87416.0,87415.0,0.20102221]
[1743088570282,0.80239229,87416.0,87415.0,0.20102221]
[1743088570472,0.59745611,87416.0,87415.0,0.31603961]
[1743088570678,0.59745611,87416.0,87415.0,0.41643961]
[1743088570885,0.60644853,87416.0,87415.0,0.41643961]
[1743088571078,0.24564853,87416.0,87415.0,0.41643961]
[1743088571280,0.00088001,87416.0,87415.0,0.41643961]
[1743088571480,0.0572073,87418.0,87415.0,0.52483961]
[1743088571681,0.001,87416.0,87415.0,0.56042221]
[1743088571887,0.00092,87446.0,87445.0,0.1143781]
[1743088572095,8e-05,87453.0,87445.0,0.1143781]
[1743088572096,0.1144477,87453.0,87452.0,0.114369]
[1743088572386,0.11532771,87453.0,87452.0,0.114969]
[1743088572889,0.11532771,87453.0,87452.0,0.315269]
[1743088573185,0.11532771,87453.0,87452.0,0.68454682]
[1743088573581,0.0571806,87458.0,87453.0,0.1143677]
[1743088573785,0.0571768,87464.0,87453.0,0.3152677]
[1743088574087,0.1147664,87454.0,87453.0,0.3152677]
[1743088574290,0.11564641,87454.0,87453.0,0.3152677]
[1743088574680,0.00128001,87454.0,87453.0,0.3152677]
[1743088574880,0.0004,87454.0,87453.0,0.4155677]
[1743088575087,0.0014,87454.0,87453.0,0.4155677]
[1743088575586,0.0571775,87463.0,87462.0,0.1715306]
[1743088575783,0.1724521,87463.0,87462.0,0.36168]
[1743088576183,0.1724521,87463.0,87462.0,0.4760359]
[1743088576785,0.1724521,87463.0,87462.0,0.6888359]
[1743088577089,0.0580975,87463.0,87462.0,0.6888359]
[1743088577386,0.0590975,87463.0,87462.0,0.6888359]
[1743088577582,0.00192,87463.0,87462.0,0.6888359]
[1743088579784,0.001,87463.0,87462.0,0.6888359]
[1743088580382,0.00188001,87463.0,87462.0,0.6888359]
[1743088581188,0.01108405,87463.0,87462.0,0.6888359]
[1743088581378,0.00188001,87463.0,87462.0,0.6888359]
[1743088582188,0.01109314,87463.0,87462.0,0.6888359]
[1743088583289,0.12544774,87463.0,87462.0,0.6888359]
[1743088583483,0.01109314,87463.0,87462.0,0.6888359]
[1743088583885,0.01021313,87463.0,87462.0,0.6888359]
[1743088584091,0.12544774,87463.0,87462.0,0.6888359]
[1743088584592,0.12545445,87463.0,87462.0,0.6888359]
[1743088585296,0.01109985,87463.0,87462.0,0.6888359]
[1743088585501,0.12545445,87463.0,87462.0,0.6888359]
[1743088585796,0.34568916,87463.0,87462.0,0.4760359]
[1743088585992,0.34568916,87463.0,87462.0,0.5762359]
[1743088586300,0.23135445,87463.0,87462.0,0.6829359]
[1743088586797,0.22695445,87463.0,87462.0,0.6829359]
[1743088587391,0.32685445,87463.0,87462.0,0.6829359]
[1743088587791,0.3332416,87463.0,87462.0,0.6829359]
[1743088588302,0.3332416,87463.0,87462.0,0.10108]
[1743088588498,0.3332416,87463.0,87462.0,0.2154359]
[1743088589089,0.1318416,87463.0,87462.0,0.20188]
[1743088589300,0.14681712,87463.0,87462.0,0.20188]
[1743088589495,0.24811712,87463.0,87462.0,0.20188]
[1743088589701,0.34941712,87463.0,87462.0,0.20188]
[1743088590189,0.24811712,87463.0,87462.0,0.3162359]
[1743088590385,0.14681712,87463.0,87462.0,0.3162359]
[1743088591698,0.24811712,87463.0,87462.0,0.3162359]
[1743088592091,0.24844395,87463.0,87462.0,0.3162359]
[1743088593003,0.24844395,87463.0,87462.0,0.20188]
[1743088593197,0.34594395,87463.0,87462.0,0.20188]
[1743088593388,0.34594395,87463.0,87462.0,0.3162359]
[1743088594488,0.34594395,87463.0,87462.0,0.20188]
[1743088594704,0.34594395,87463.0,87462.0,0.3162359]
[1743088595600,0.34594395,87463.0,87462.0,0.20188]
[1743088596001,0.34594395,87463.0,87462.0,0.10108]
[1743088596594,0.1143664,87454.0,87453.0,0.2146677]
[1743088596796,0.14004859,87454.0,87453.0,0.1009]
[1743088596996,0.1143716,87450.0,87449.0,0.00863542]
[1743088597309,0.1402938,87450.0,87449.0,0.00923542]
[1743088597609,0.25660946,87450.0,87449.0,0.0006]
[1743088597800,0.35280946,87450.0,87449.0,0.0006]
[1743088598300,0.25660946,87450.0,87449.0,0.0006]
[1743088598505,0.24588095,87450.0,87449.0,0.0006]
[1743088598707,0.24588095,87450.0,87449.0,0.1015]
[1743088599310,0.14668095,87450.0,87449.0,0.2158729]
[1743088599705,0.14768095,87450.0,87449.0,0.2158729]
[1743088599906,0.03330935,87450.0,87449.0,0.2158729]
[1743088600101,0.14628094,87450.0,87449.0,0.2158729]
[1743088600304,0.14764094,87450.0,87449.0,0.3145729]
[1743088602109,0.14764094,87450.0,87449.0,0.2002]
[1743088602314,0.25194094,87450.0,87449.0,0.3145729]
[1743088602705,0.25194094,87450.0,87449.0,0.2002]
[1743088602910,0.34904094,87450.0,87449.0,0.3145729]
[1743088603601,0.14764094,87450.0,87449.0,0.3145729]
[1743088605329,0.0338079,87450.0,87449.0,0.3145729]
[1743088605526,0.0170259,87450.0,87449.0,0.3145729]
[1743088606025,0.01063875,87450.0,87449.0,0.3145729]
[1743088606421,0.14031065,87450.0,87449.0,0.3145729]
[1743088606626,0.14171066,87450.0,87449.0,0.3145729]
[1743088606827,0.14171066,87450.0,87449.0,0.2002]
[1743088607026,0.14171066,87450.0,87449.0,0.3145729]
[1743088607231,0.34651066,87450.0,87449.0,0.3145729]
[1743088607431,0.34613561,87450.0,87449.0,0.3145729]
[1743088607620,0.36307731,87450.0,87449.0,0.3145729]
[1743088608228,0.35265165,87450.0,87449.0,0.3145729]
[1743088608726,0.35265165,87450.0,87449.0,0.2002]
[1743088609229,0.35263514,87450.0,87449.0,0.3145729]
[1743088609430,0.33752899,87450.0,87449.0,0.3145729]
[1743088610032,0.33752899,87450.0,87449.0,0.2002]
[1743088610223,0.33752899,87450.0,87449.0,0.3145729]
[1743088610926,0.33752899,87450.0,87449.0,0.2002]
[1743088611229,0.33752899,87450.0,87449.0,0.3145729]
[1743088611422,0.35243047,87450.0,87449.0,0.3145729]
[1743088612021,0.35243047,87450.0,87449.0,0.2002]
[1743088612231,0.45423047,87450.0,87449.0,0.1015]
[1743088613134,0.35243047,87450.0,87449.0,0.1015]
[1743088613629,0.35243047,87450.0,87449.0,0.2057]
[1743088615824,0.35243047,87450.0,87449.0,0.3200729]
[1743088616420,0.35243047,87450.0,87449.0,0.2057]
[1743088617225,0.32808765,87450.0,87449.0,0.2057]
[1743088617535,0.35244758,87450.0,87449.0,0.2057]
[1743088618422,0.33745685,87450.0,87449.0,0.2057]
[1743088619033,0.69825685,87450.0,87449.0,0.2057]
[1743088621435,0.0571917,87441.0,87435.0,0.4751911]
[1743088621731,0.1143899,87436.0,87435.0,0.4179948]
[1743088622039,0.12520204,87436.0,87435.0,0.4179948]
[1743088622433,0.1401451,87436.0,87435.0,0.4179948]
[1743088622634,0.1401451,87436.0,87435.0,0.4209948]
[1743088622937,0.1401451,87436.0,87435.0,0.4229948]
[1743088623126,0.1401451,87436.0,87435.0,0.43154562]
[1743088623636,0.01088889,87436.0,87435.0,0.43154562]
[1743088623939,0.00932888,87436.0,87435.0,0.62374562]
[1743088624136,0.12371878,87436.0,87435.0,0.62374562]
[1743088624439,0.12531878,87436.0,87435.0,0.62374562]
[1743088626836,0.22805741,87436.0,87435.0,0.62374562]
[1743088627035,0.22805741,87436.0,87435.0,0.6723912]
[1743088627435,0.42675741,87436.0,87435.0,0.6723912]
[1743088627839,0.4330757,87436.0,87435.0,0.6723912]
[1743088628242,0.54744572,87436.0,87435.0,0.6723912]
[1743088628433,0.54744572,87436.0,87435.0,0.558]
[1743088628633,0.54744572,87436.0,87435.0,0.6723912]
[1743088629339,0.54103318,87436.0,87435.0,0.6723912]
[1743088630440,0.11357326,87436.0,87435.0,0.6723912]
[1743088630739,0.13698484,87442.0,87441.0,0.1143834]
[1743088630942,0.00017126,87444.0,87443.0,0.1143807]
[1743088631245,0.00177126,87444.0,87443.0,0.2089807]
[1743088631435,0.00177126,87444.0,87443.0,0.4028807]
[1743088631641,0.11455066,87444.0,87443.0,0.4028807]
[1743088631839,0.11607066,87444.0,87443.0,0.4028807]
[1743088632346,0.00169126,87444.0,87443.0,0.4028807]
[1743088632536,0.00017126,87444.0,87443.0,0.4028807]
[1743088632731,0.00169126,87444.0,87443.0,0.4028807]
[1743088632932,0.11607066,87444.0,87443.0,0.4028807]
[1743088633640,0.11607066,87444.0,87443.0,0.4038807]
[1743088634544,0.00169126,87444.0,87443.0,0.4038807]
[1743088634852,0.00017126,87444.0,87443.0,0.4038807]
[1743088635348,0.00169126,87444.0,87443.0,0.4038807]
[1743088635541,0.00017126,87444.0,87443.0,0.4038807]
[1743088635736,0.13700486,87450.0,87443.0,0.4038807]
[1743088635940,0.25137646,87450.0,87449.0,0.4751729]
[1743088636140,0.25297646,87450.0,87449.0,0.4751729]
[1743088636340,0.25297646,87450.0,87449.0,0.6656729]
[1743088636835,0.13860486,87450.0,87449.0,0.6656729]
[1743088637040,0.13960486,87450.0,87449.0,0.6656729]
[1743088637243,0.13800486,87450.0,87449.0,0.6656729]
[1743088637935,0.00256001,87450.0,87449.0,0.6656729]
[1743088638133,0.1168916,87450.0,87449.0,0.6656729]
[1743088638946,0.3152916,87450.0,87449.0,0.6656729]
[1743088642547,0.45229646,87450.0,87449.0,0.6656729]
[1743088642750,0.46111345,87450.0,87449.0,0.6656729]
[1743088646253,0.12570859,87450.0,87449.0,0.6656729]
[1743088647148,0.12570859,87450.0,87449.0,0.5513]
[1743088647549,0.30910859,87450.0,87449.0,0.5513]
[1743088647750,0.30910859,87450.0,87449.0,0.6656729]
[1743088648158,0.30905248,87450.0,87449.0,0.6656729]
[1743088649152,0.44605734,87450.0,87449.0,0.6656729]
[1743088649757,0.44605734,87450.0,87449.0,0.3048729]
[1743088650363,0.44605734,87450.0,87449.0,0.0944]
[1743088650662,0.1143768,87446.0,87445.0,0.2085781]
[1743088650850,0.00152,87446.0,87445.0,0.2085781]
[1743088651050,0.1158968,87446.0,87445.0,0.2085781]
[1743088652957,0.00152,87446.0,87445.0,0.2085781]
[1743088653548,8e-05,87448.0,87447.0,0.1143755]
[1743088653759,0.00164001,87448.0,87447.0,0.1143755]
[1743088654062,0.00164001,87448.0,87447.0,0.2051755]
[1743088654256,0.00156001,87448.0,87447.0,0.2900755]
[1743088654856,0.17125608,87451.0,87448.0,0.057187]
[1743088655160,8e-05,87450.0,87449.0,0.1715593]
[1743088655362,0.0016,87450.0,87449.0,0.3472593]
[1743088655549,8e-05,87450.0,87449.0,0.3472593]
[1743088655746,0.17125608,87451.0,87450.0,0.1143716]
[1743088656060,0.17277608,87451.0,87450.0,0.1143716]
[1743088656255,0.17277608,87451.0,87450.0,0.2900716]
[1743088657455,0.00152,87451.0,87450.0,0.2900716]
[1743088657959,8e-05,87452.0,87451.0,0.1143703]
[1743088658159,0.0016,87452.0,87451.0,0.4751703]
[1743088658362,0.0016,87452.0,87451.0,0.6619703]
[1743088658954,8e-05,87452.0,87451.0,0.6619703]
[1743088659151,8e-05,87452.0,87451.0,0.7828503]
[1743088659657,0.00108,87452.0,87451.0,0.7828503]
[1743088660855,8e-05,87457.0,87456.0,0.1143637]
[1743088661079,0.0016,87457.0,87456.0,0.1143637]
[1743088661263,8e-05,87457.0,87456.0,0.1143637]
[1743088661654,8e-05,87457.0,87456.0,0.2961637]
[1743088663163,0.22757436,87465.0,87464.0,0.1143533]
[1743088663463,0.13849436,87465.0,87464.0,0.4751533]
[1743088663671,0.00907681,87471.0,87464.0,0.6964]
[1743088663963,0.3608,87529.0,87511.0,0.1142919]
[1743088664260,0.8884191,87540.0,87511.0,0.5965319]
[1743088664261,0.27023348,87512.0,87511.0,0.5965319]
[1743088664461,0.27023348,87512.0,87511.0,0.4756919]
[1743088664658,0.27904459,87512.0,87511.0,0.4756919]
[1743088665054,0.27023348,87512.0,87511.0,0.4756919]
[1743088665565,0.38452408,87512.0,87511.0,0.4756919]
[1743088665766,0.38452408,87512.0,87511.0,0.4845784]
[1743088665961,0.38452408,87512.0,87511.0,0.3614]
[1743088666167,0.11685062,87512.0,87511.0,0.3614]
[1743088667168,0.12565458,87512.0,87511.0,0.3614]
[1743088667363,0.12565458,87512.0,87511.0,0.0006]
[1743088667666,0.12565458,87512.0,87509.0,0.00045709]
[1743088667667,0.1142932,87510.0,87509.0,0.00045709]
[1743088667863,0.11533321,87510.0,87509.0,0.00105709]
[1743088668167,0.11685322,87510.0,87509.0,0.00105709]
[1743088669563,0.23112652,87510.0,87509.0,0.00105709]
[1743088670371,0.114301,87504.0,87503.0,0.36097141]
[1743088670662,0.11554101,87504.0,87503.0,0.36157141]
[1743088670968,0.11706102,87504.0,87503.0,0.36157141]
[1743088671165,0.23133432,87504.0,87503.0,0.36157141]
[1743088671463,0.32713432,87504.0,87503.0,0.36157141]
[1743088671858,0.21286102,87504.0,87503.0,0.47587371]
[1743088672666,0.21286102,87504.0,87503.0,0.36157141]
[1743088673964,0.21286102,87504.0,87503.0,0.47587371]
[1743088674572,0.21286102,87504.0,87503.0,0.36157141]
[1743088676082,0.21286102,87504.0,87503.0,0.47587371]
[1743088676266,0.21286102,87504.0,87503.0,0.36157141]
[1743088679266,0.30156102,87504.0,87503.0,0.36157141]
[1743088679771,0.1143128,87495.0,87494.0,0.3608]
[1743088679964,0.1157528,87495.0,87494.0,0.4757141]
[1743088680276,0.20597281,87495.0,87494.0,0.4757141]
[1743088680665,0.29397281,87495.0,87494.0,0.4757141]
[1743088680962,0.29397281,87495.0,87494.0,0.3634]
[1743088681367,0.1143232,87487.0,87486.0,0.00017141]
[1743088681687,0.1159632,87487.0,87486.0,0.00911112]
[1743088681974,0.39698321,87487.0,87486.0,0.00017141]
[1743088682475,0.00164,87487.0,87486.0,0.21771395]
[1743088682676,0.0571577,87493.0,87492.0,0.0571583]
[1743088682868,0.1730731,87493.0,87492.0,0.0571583]
[1743088683173,0.15625771,87493.0,87492.0,0.4179583]
[1743088683380,0.00168,87493.0,87492.0,0.6086583]
[1743088683671,0.0571544,87498.0,87497.0,0.1143102]
[1743088683880,0.1730646,87498.0,87497.0,0.3050102]
[1743088684069,0.2681646,87498.0,87497.0,0.3050102]
[1743088685182,0.2681646,87498.0,87497.0,0.3070102]
[1743088686475,0.0016,87498.0,87497.0,0.6688102]
[1743088686670,0.0959,87499.0,87497.0,0.6688102]
[1743088686671,0.0959,87499.0,87498.0,0.1143088]
[1743088686878,8e-05,87504.0,87497.0,0.611655]
[1743088686879,0.00017106,87512.0,87511.0,0.1142919]
[1743088687074,0.00925633,87512.0,87511.0,0.4750919]
[1743088687276,8e-05,87529.0,87511.0,0.5486]
[1743088687473,0.0903,87572.0,87547.0,0.1142449]
[1743088687675,0.26919347,87553.0,87549.0,0.1142423]
[1743088687981,0.30278389,87559.0,87558.0,0.1142305]
[1743088688172,8e-05,87565.0,87564.0,0.1142227]
[1743088688370,8e-05,87565.0,87564.0,0.4756227]
[1743088688580,0.32954179,87581.0,87564.0,0.36860625]
[1743088688770,0.32954179,87581.0,87580.0,0.4750018]
[1743088688771,0.33022179,87581.0,87580.0,0.4750018]
[1743088688969,0.4459423,87581.0,87580.0,0.36144]
[1743088689582,0.45224055,87581.0,87580.0,0.36144]
[1743088689779,0.45224055,87581.0,87580.0,0.00064]
[1743088689978,0.1142214,87565.0,87564.0,0.35927999]
[1743088690279,0.1148614,87565.0,87564.0,0.35927999]